bitfinex/quotes_ETHUSD_20250916
["timestamp","ask_amount","ask_price","bid_price","bid_amount"]
[1758013001611,0.44243071,4517.9,4517.8,5.58666721]
[1758013001810,0.31867208,4517.9,4517.8,5.58666721]
[1758013002241,2.53208981,4517.9,4517.8,5.58666721]
[1758013003052,2.53208981,4517.9,4517.8,1.30305001]
[1758013003394,2.53208981,4517.9,4517.8,0.89105001]
[1758013003746,2.53208981,4517.9,4517.8,0.41755001]
[1758013006631,2.53208981,4517.9,4517.8,0.89105001]
[1758013008702,2.53208981,4517.9,4517.8,0.41755001]
[1758013011535,2.53208981,4517.9,4517.8,0.88695001]
[1758013011839,2.53208981,4517.9,4517.8,0.41755001]
[1758013012337,2.53171282,4517.9,4517.8,0.41755001]
[1758013012536,2.53171282,4517.9,4517.8,0.88695001]
[1758013012742,2.53171282,4517.9,4517.8,1.29895001]
[1758013013037,2.53171282,4517.9,4517.8,0.88695001]
[1758013013455,2.53171282,4517.9,4517.8,0.41755001]
[1758013015552,2.32581773,4517.9,4517.8,0.41755001]
[1758013016255,2.53169206,4517.9,4517.8,0.41755001]
[1758013016561,2.32581773,4517.9,4517.8,0.41755001]
[1758013016882,0.31827933,4517.9,4517.8,0.41755001]
[1758013017162,2.32581773,4517.9,4517.8,0.90025001]
[1758013017351,2.53169706,4517.9,4517.8,0.90025001]
[1758013017954,2.53169706,4517.9,4517.8,0.41755001]
[1758013018454,2.53170646,4517.9,4517.8,0.41755001]
[1758013019958,0.31828873,4517.9,4517.8,0.41755001]
[1758013020143,2.53170646,4517.9,4517.8,0.41755001]
[1758013020467,0.31828873,4517.9,4517.8,0.41755001]
[1758013020869,2.53170646,4517.9,4517.8,0.90025001]
[1758013021075,2.53090646,4517.9,4517.8,0.41755001]
[1758013021971,0.31748873,4517.9,4517.8,0.90025001]
[1758013022271,0.0012,4517.9,4517.8,5.18386721]
[1758013022448,0.0012,4517.9,4517.8,5.59586721]
[1758013022650,0.0012,4517.9,4517.8,1.31225001]
[1758013022851,0.0012,4517.9,4517.8,5.61800187]
[1758013023047,0.0012,4517.9,4517.8,5.59586721]
[1758013023963,0.0004,4517.9,4517.8,8.87086721]
[1758013024132,0.0004,4517.9,4517.8,9.28286721]
[1758013025184,0.0004,4517.9,4517.8,8.87086721]
[1758013027882,0.0004,4517.9,4517.8,8.38816721]
[1758013029688,2.51461773,4517.9,4517.8,3.80635001]
[1758013029895,2.97831773,4517.9,4517.8,3.80635001]
[1758013030261,3.18428808,4517.9,4517.8,3.80635001]
[1758013030663,3.18428808,4517.9,4517.8,3.68780001]
[1758013033974,3.18428808,4517.9,4517.8,0.00080001]
[1758013034175,3.29468808,4517.9,4517.8,0.00080001]
[1758013041094,0.31677035,4517.9,4517.8,0.00080001]
[1758013041492,0.31677035,4517.9,4517.8,4.58421721]
[1758013041718,0.1108,4517.9,4517.8,8.7721525]
[1758013043198,0.11,4517.9,4517.8,8.7721525]
[1758013045597,2.32341773,4517.9,4517.8,4.1887353]
[1758013045801,3.28118808,4517.9,4517.8,0.00080001]
[1758013045982,3.28118808,4517.9,4517.8,3.68680001]
[1758013048101,3.28118808,4517.9,4517.8,0.00080001]
[1758013048311,3.50079527,4517.9,4517.8,0.00080001]
[1758013048615,7.27554187,4517.9,4517.8,0.00080001]
[1758013048915,7.75024765,4517.9,4517.8,0.00080001]
[1758013049082,7.74944765,4517.9,4517.8,0.00080001]
[1758013050612,7.27474187,4517.9,4517.8,0.00080001]
[1758013053924,7.06873838,4517.9,4517.8,0.00080001]
[1758013054104,7.27459373,4517.9,4517.8,0.00080001]
[1758013055626,7.27659373,4517.9,4517.8,0.00080001]
[1758013056133,7.7508333,4517.9,4517.8,0.00080001]
[1758013057910,7.75069636,4517.9,4517.8,0.00080001]
[1758013063287,7.75016342,4517.9,4517.8,0.00080001]
[1758013065356,7.74936342,4517.9,4517.8,0.00080001]
[1758013071001,7.74887035,4517.9,4517.8,0.00080001]
[1758013073210,7.74887902,4517.9,4517.8,0.00080001]
[1758013074113,7.74807902,4517.9,4517.8,0.00080001]
[1758013078992,7.74865651,4517.9,4517.8,0.00080001]
[1758013082220,7.74869676,4517.9,4517.8,0.00080001]
[1758013083559,3.31089676,4517.9,4517.8,0.30060001]
[1758013083721,6.52315026,4517.9,4517.8,0.30060001]
[1758013084425,2.74840366,4517.9,4517.8,0.75500001]
[1758013084776,2.42131991,4517.9,4517.8,1.28380001]
[1758013084954,0.20790218,4517.9,4517.8,1.28380001]
[1758013085653,2.42131991,4517.9,4517.8,1.28380001]
[1758013086158,2.42131991,4517.9,4517.8,0.87180001]
[1758013086853,2.42131991,4517.9,4517.8,0.41740001]
[1758013087527,2.42051991,4517.9,4517.8,0.41740001]
[1758013088252,2.42051991,4517.9,4517.8,0.30060001]
[1758013088457,3.87491417,4517.9,4517.8,0.00080001]
[1758013088689,7.56091417,4517.9,4517.8,0.00080001]
[1758013089279,6.80641417,4517.9,4517.8,0.00080001]
[1758013089438,6.31241417,4517.9,4517.8,0.00080001]
[1758013090341,6.31238695,4517.9,4517.8,0.30060001]
[1758013090566,6.31238664,4517.9,4517.8,0.30060001]
[1758013090944,6.10651991,4517.9,4517.8,0.30060001]
[1758013092781,2.42051991,4517.9,4517.8,0.30060001]
[1758013094041,2.42051991,4517.9,4517.8,0.00080001]
[1758013094244,2.91451991,4517.9,4517.8,0.00080001]
[1758013097579,3.22881991,4517.9,4517.8,0.00080001]
[1758013097792,3.66901991,4517.9,4517.8,0.00080001]
[1758013099572,3.66821991,4517.9,4517.8,0.00080001]
[1758013099810,2.91371991,4517.9,4517.8,0.00080001]
[1758013100880,0.20630218,4517.9,4517.8,0.77500001]
[1758013101285,2.21381773,4517.9,4517.8,0.77500001]
[1758013101603,2.41971991,4517.9,4517.8,0.42491358]
[1758013105511,2.70871991,4517.9,4517.8,0.12181358]
[1758013105713,3.65061991,4517.9,4517.8,0.00080001]
[1758013106411,3.9801186,4517.9,4517.8,0.00080001]
[1758013107875,3.98012681,4517.9,4517.8,0.00080001]
[1758013108116,3.98012536,4517.9,4517.8,0.00080001]
[1758013108307,3.98012845,4517.9,4517.8,0.00080001]
[1758013108637,4.4546907,4517.9,4517.8,0.00080001]
[1758013109001,3.98012845,4517.9,4517.8,0.00080001]
[1758013109195,4.4546877,4517.9,4517.8,0.00080001]
[1758013109410,3.98012845,4517.9,4517.8,0.00080001]
[1758013109712,3.97932845,4517.9,4517.8,0.00080001]
[1758013109922,3.97938567,4517.9,4517.8,0.00080001]
[1758013110452,4.45401124,4517.9,4517.8,0.00080001]
[1758013116734,3.22311124,4517.9,4517.8,0.30390001]
[1758013117054,2.41931991,4517.9,4517.8,1.18700001]
[1758013117342,2.52971991,4517.9,4517.8,1.30801358]
[1758013118767,2.52971991,4517.9,4517.8,0.89601358]
[1758013120367,2.52987016,4517.9,4517.8,0.89601358]
[1758013120670,2.52987016,4517.9,4517.8,0.42491358]
[1758013123163,2.52987016,4517.9,4517.8,1.30801358]
[1758013123364,2.52987016,4517.9,4517.8,0.89601358]
[1758013123754,2.52987016,4517.9,4517.8,0.42491358]
[1758013124663,2.52907016,4517.9,4517.8,0.42491358]
[1758013124830,2.52907016,4517.9,4517.8,0.89601358]
[1758013125369,2.52907016,4517.9,4517.8,0.42491358]
[1758013125565,2.53107016,4517.9,4517.8,0.42491358]
[1758013131672,3.76657016,4517.9,4517.8,0.12181358]
[1758013131976,3.76577016,4517.9,4517.8,0.12181358]
[1758013132769,3.55971773,4517.9,4517.8,0.12181358]
[1758013133069,3.30505792,4517.9,4517.8,0.12181358]
[1758013133250,3.00745792,4517.9,4517.8,0.12181358]
[1758013133969,2.53025792,4517.9,4517.8,0.43701358]
[1758013134332,2.53025792,4517.9,4517.8,0.12181358]
[1758013134939,3.00745792,4517.9,4517.8,0.12181358]
[1758013136877,3.00905792,4517.9,4517.8,0.12181358]
[1758013137575,2.80301773,4517.9,4517.8,0.12181358]
[1758013137955,2.32581773,4517.9,4517.8,0.12181358]
[1758013138272,0.3184911,4517.9,4517.8,0.41951358]
[1758013138843,0.1124,4517.9,4517.8,0.41951358]
[1758013139150,2.53196182,4517.9,4517.8,0.41951358]
[1758013140262,2.53195593,4517.9,4517.8,0.41951358]
[1758013140467,3.72055593,4517.9,4517.8,0.12181358]
[1758013140665,3.72055593,4517.9,4517.8,0.00080001]
[1758013142076,2.98855593,4517.9,4517.8,0.00080001]
[1758013142281,2.53195593,4517.9,4517.8,0.00080001]
[1758013142477,0.3185382,4517.9,4517.8,0.29850001]
[1758013143968,0.1124,4517.9,4517.8,0.32063467]
[1758013144171,2.53199776,4517.9,4517.8,0.32063467]
[1758013144845,2.53199776,4517.9,4517.8,0.29850001]
[1758013145271,3.49253807,4517.9,4517.8,0.00080001]
[1758013145460,3.92683807,4517.9,4517.8,0.00080001]
[1758013145672,0.52482034,4517.9,4517.8,0.00080001]
[1758013146060,0.64867224,4517.9,4517.8,0.00080001]
[1758013146782,0.31863796,4517.9,4517.8,0.00080001]
[1758013147883,0.64867224,4517.9,4517.8,0.00080001]
[1758013148054,2.86208997,4517.9,4517.8,0.00080001]
[1758013148386,0.64867224,4517.9,4517.8,0.00080001]
[1758013148887,2.86208997,4517.9,4517.8,0.00080001]
[1758013149185,0.64867224,4517.9,4517.8,0.00080001]
[1758013149388,0.64867224,4517.9,4517.8,0.29850001]
[1758013149609,0.002,4517.9,4517.8,7.90735071]
[1758013149747,0.0012,4517.9,4517.8,8.42975071]
[1758013150069,0.0012,4517.9,4517.8,22.92975071]
[1758013150386,0.0012,4517.9,4517.8,27.2116548]
[1758013150551,0.0012,4517.9,4517.8,22.92975071]
[1758013150751,0.0012,4517.9,4517.8,27.2116548]
[1758013151151,0.0012,4517.9,4517.8,22.92975071]
[1758013153390,0.0012,4517.9,4517.8,26.3108548]
[1758013153877,0.0012,4517.9,4517.8,26.7996548]
[1758013154077,0.0004,4517.9,4517.8,26.7996548]
[1758013154261,0.0004,4517.9,4517.8,23.1156548]
[1758013154466,0.0004,4517.9,4517.8,26.7996548]
[1758013158865,0.0004,4517.9,4517.8,31.49355889]
[1758013159061,0.0004,4517.9,4517.8,27.2116548]
[1758013160627,0.0004,4517.9,4517.8,31.49355889]
[1758013160833,0.0004,4517.9,4517.8,27.2116548]
[1758013161240,0.0004,4517.9,4517.8,27.6904548]
[1758013161697,0.0004,4517.9,4517.8,31.97235889]
[1758013162296,0.0004,4517.9,4517.8,34.97235889]
[1758013166222,0.0004,4517.9,4517.8,34.56035889]
[1758013167044,0.0004,4517.9,4517.8,26.1056548]
[1758013167245,0.0004,4517.9,4517.8,29.4909548]
[1758013167418,0.4792,4517.9,4517.8,29.4909548]
[1758013170251,0.0004,4517.9,4517.8,29.4909548]
[1758013170617,0.0004,4517.9,4517.8,34.07335889]
[1758013171763,0.0004,4517.9,4517.8,34.56195889]
[1758013172530,0.0004,4517.9,4517.8,34.07335889]
[1758013173364,0.0004,4517.9,4517.8,29.7914548]
[1758013174966,0.4784,4518.2,4518.1,2.21331975]
[1758013175270,0.002,4518.4,4518.3,3.792]
[1758013175438,0.002,4518.4,4518.3,7.475]
[1758013175639,0.288,4518.4,4518.3,7.475]
[1758013175972,0.7442,4518.4,4518.3,21.975]
[1758013176273,0.7442,4518.4,4518.3,24.47622178]
[1758013176570,0.7442,4518.4,4518.3,26.61537361]
[1758013177071,1.223,4518.4,4518.3,26.61537361]
[1758013177773,1.223,4518.4,4518.3,31.75113371]
[1758013181082,1.2222,4518.4,4518.3,31.75113371]
[1758013185287,1.2222,4518.4,4518.3,26.61537361]
[1758013185602,1.2222,4518.4,4518.3,31.75193371]
[1758013187022,1.2222,4518.4,4518.3,31.46393371]
[1758013196731,1.2222,4518.4,4518.3,31.46293371]
[1758013197635,1.2222,4518.4,4518.3,26.32817361]
[1758013198530,0.7434,4518.4,4518.3,26.32817361]
[1758013199137,0.7434,4518.4,4518.3,22.64617361]
[1758013199431,0.7434,4518.4,4518.3,26.32817361]
[1758013199628,0.0012,4518.4,4518.3,26.32817361]
[1758013200134,0.0004,4518.4,4518.3,26.32817361]
[1758013200315,0.0004,4518.4,4518.3,26.41687494]
[1758013200740,0.0004,4518.4,4518.3,11.91687494]
[1758013201233,0.0004,4518.4,4518.3,26.41687494]
[1758013202340,0.0004,4518.4,4518.3,11.91687494]
[1758013202724,0.0004,4518.4,4518.3,8.23487494]
[1758013202930,0.0004,4518.4,4518.3,11.91687494]
[1758013203126,0.0016,4518.6,4518.5,3.00512382]
[1758013203327,0.0016,4518.6,4518.5,6.68792382]
[1758013203727,0.0016,4518.6,4518.5,6.79832382]
[1758013203945,0.0016,4518.6,4518.5,8.2223637]
[1758013205419,0.0016,4518.6,4518.5,4.5403637]
[1758013205740,0.0016,4518.6,4518.5,8.2223637]
[1758013205945,0.0016,4518.6,4518.5,4.5403637]
[1758013206241,0.0016,4518.6,4518.5,8.2223637]
[1758013209213,0.0016,4518.6,4518.5,6.00923988]
[1758013209561,0.0016,4518.6,4518.5,4.5852]
[1758013210681,0.0016,4518.6,4518.5,0.1112]
[1758013210882,0.20788241,4518.6,4518.5,2.2758]
[1758013211078,2.42095725,4518.6,4518.5,3.6818]
[1758013211498,2.42095725,4518.6,4518.5,0.0008]
[1758013211671,0.20788241,4518.6,4518.5,3.6818]
[1758013212502,2.21467484,4518.6,4518.5,3.6818]
[1758013212737,2.42095725,4518.6,4518.5,0.0008]
[1758013212903,2.62688278,4518.6,4518.5,0.0008]
[1758013213228,2.75035913,4518.6,4518.5,0.0008]
[1758013214002,2.75020285,4518.6,4518.5,0.0008]
[1758013214225,2.75019716,4518.6,4518.5,0.0008]
[1758013215343,2.54426516,4518.6,4518.5,0.0008]
[1758013215547,2.42061226,4518.6,4518.5,0.0008]
[1758013217822,0.20753742,4518.6,4518.5,0.0008]
[1758013217995,0.0016,4518.6,4518.5,5.91805505]
[1758013218195,0.0016,4518.6,4518.5,6.57806933]
[1758013218646,0.0016,4518.6,4518.5,7.37006933]
[1758013219196,0.0016,4518.6,4518.5,12.61622943]
[1758013221471,0.0016,4518.6,4518.5,15.61622943]
[1758013221963,0.0016,4518.6,4518.5,30.00582943]
[1758013222132,0.0016,4518.6,4518.5,30.11622943]
[1758013223239,0.0016,4518.6,4518.5,24.98046933]
[1758013225051,0.0016,4518.6,4518.5,25.06916418]
[1758013225239,0.0008,4518.6,4518.5,25.06916418]
[1758013225556,0.002,4518.7,4518.6,6.00507484]
[1758013225759,0.002,4518.7,4518.6,13.28078677]
[1758013226128,0.002,4518.7,4518.6,11.82602667]
[1758013226329,0.002,4518.7,4518.6,0.0008]
[1758013226530,0.002,4518.7,4518.6,3.6828]
[1758013227344,0.002,4518.7,4518.6,3.70493074]
[1758013227539,0.002,4518.7,4518.6,5.91800558]
[1758013227811,0.002,4518.7,4518.6,5.89587484]
[1758013227968,0.002,4518.7,4518.6,6.62579339]
[1758013228271,0.002,4518.7,4518.6,7.52819339]
[1758013229531,0.002,4518.7,4518.6,7.61688332]
[1758013229764,0.002,4518.7,4518.6,22.11688332]
[1758013230433,0.002,4518.7,4518.6,25.11688332]
[1758013239899,0.002,4518.7,4518.6,29.39609395]
[1758013240196,0.002,4518.7,4518.6,29.39509395]
[1758013240365,0.002,4518.7,4518.6,25.71409395]
[1758013240566,0.002,4518.7,4518.6,29.39609395]
[1758013242201,0.002,4518.7,4518.6,27.18301911]
[1758013242408,0.002,4518.7,4518.6,7.5852]
[1758013243899,0.002,4518.7,4518.6,0.1112]
[1758013244203,0.002,4518.7,4518.6,3.6818]
[1758013245393,0.002,4518.7,4518.6,3.70393074]
[1758013246298,0.002,4518.7,4518.6,5.91700558]
[1758013246516,0.002,4518.7,4518.6,10.17408547]
[1758013247414,0.0012,4518.7,4518.6,10.17408547]
[1758013247616,0.0012,4518.7,4518.6,7.96101063]
[1758013247912,0.0012,4518.7,4518.6,10.17408547]
[1758013249386,0.0012,4518.7,4518.6,7.96101063]
[1758013249711,0.0012,4518.7,4518.6,3.6818]
[1758013249910,0.0012,4518.7,4518.6,5.89487484]
[1758013250450,0.0012,4518.7,4518.6,3.6818]
[1758013250618,0.0004,4518.7,4518.6,3.6818]
[1758013250822,0.0004,4518.7,4518.6,5.89487484]
[1758013251130,0.20619684,4518.7,4518.6,0.0008]
[1758013251282,2.62503421,4518.7,4518.6,0.0008]
[1758013252935,2.41923737,4518.7,4518.6,0.0018]
[1758013253217,2.62485811,4518.7,4518.6,0.0018]
[1758013256754,2.74807577,4518.7,4518.6,0.0018]
[1758013257957,2.62485811,4518.7,4518.6,0.0018]
[1758013260649,2.21342587,4518.7,4518.6,0.0018]
[1758013260812,2.41853932,4518.7,4518.6,0.0018]
[1758013261153,2.21342587,4518.7,4518.6,0.0018]
[1758013261447,2.62366589,4518.7,4518.6,0.0018]
[1758013263471,6.05957472,4518.7,4518.6,0.0018]
[1758013267744,2.2131728,4518.4,4518.3,0.001]
[1758013268068,15.28782345,4518.4,4518.3,0.001]
[1758013268277,15.88312525,4518.4,4518.3,0.001]
[1758013268577,15.97187381,4518.4,4518.3,0.001]
[1758013271894,15.97169934,4518.4,4518.3,0.001]
[1758013273594,12.28769934,4518.4,4518.3,0.001]
[1758013273753,15.97269934,4518.4,4518.3,0.001]
[1758013274604,15.50039768,4518.4,4518.3,0.001]
[1758013274765,15.97253013,4518.4,4518.3,0.001]
[1758013275780,15.97173013,4518.4,4518.3,0.001]
[1758013276108,8.0075195,4518.4,4518.3,0.001]
[1758013276308,15.97073013,4518.4,4518.3,0.001]
[1758013277291,11.21938705,4518.4,4518.3,0.001]
[1758013277491,11.22038705,4518.4,4518.3,0.001]
[1758013277683,7.44663849,4518.4,4518.3,0.001]
[1758013277884,11.13163849,4518.4,4518.3,0.001]
[1758013278087,11.13163849,4518.4,4518.3,0.0018]
[1758013280172,11.60441687,4518.4,4518.3,0.0018]
[1758013281075,11.60450515,4518.4,4518.3,0.0018]
[1758013281608,7.91950515,4518.4,4518.3,0.0018]
[1758013281797,11.60350515,4518.4,4518.3,0.0018]
[1758013283506,7.91950515,4518.4,4518.3,0.0018]
[1758013283709,11.60350515,4518.4,4518.3,0.0018]
[1758013284221,7.91950515,4518.4,4518.3,0.0018]
[1758013284460,11.60375041,4518.4,4518.3,0.0018]
[1758013284656,11.13088375,4518.4,4518.3,0.0018]
[1758013285210,11.60414054,4518.4,4518.3,0.0018]
[1758013286249,11.60314054,4518.4,4518.3,0.0018]
[1758013287327,11.60514054,4518.4,4518.3,0.0018]
[1758013288256,11.60630454,4518.4,4518.3,0.0018]
[1758013290893,6.22130454,4518.4,4518.3,0.0018]
[1758013291091,9.43024775,4518.4,4518.3,0.0018]
[1758013291390,9.90350454,4518.4,4518.3,0.0018]
[1758013292716,2.21331975,4518.1,4518.0,0.001]
[1758013292858,10.58666496,4518.1,4518.0,0.001]
[1758013293060,11.18326212,4518.1,4518.0,0.0018]
[1758013293558,11.18344601,4518.1,4518.0,0.0018]
[1758013297691,6.90423538,4518.1,4518.0,0.0018]
[1758013297886,11.29496545,4518.1,4518.0,0.0018]
[1758013298086,11.18343139,4518.1,4518.0,0.0018]
[1758013300036,11.18369526,4518.1,4518.0,0.0018]
[1758013301028,11.18289526,4518.1,4518.0,0.0018]
[1758013301906,12.04531013,4518.1,4518.0,0.0018]
[1758013306092,12.0453181,4518.1,4518.0,0.0018]
[1758013307497,6.9036926,4518.1,4518.0,0.0018]
[1758013308497,6.90370022,4518.1,4518.0,0.0018]
[1758013313445,6.43044343,4518.1,4518.0,0.0018]
[1758013313760,6.90467097,4518.1,4518.0,0.0018]
[1758013313918,6.90471191,4518.1,4518.0,0.0018]
[1758013314120,6.90480613,4518.1,4518.0,0.0018]
[1758013321273,6.57548117,4518.1,4518.0,0.0018]
[1758013321452,6.90509855,4518.1,4518.0,0.0018]
[1758013322271,6.90537561,4518.1,4518.0,0.0018]
[1758013326093,2.21261773,4517.9,4517.5,0.001]
[1758013326398,6.43044605,4517.9,4517.5,0.001]
[1758013329816,2.74744605,4517.9,4517.5,0.001]
[1758013330110,0.4121508,4517.9,4517.6,5.1426255]
[1758013330315,0.20613973,4517.9,4517.8,5.72782929]
[1758013330613,0.20602554,4518.3,4518.2,2.21327077]
[1758013330812,0.20602554,4518.3,4518.2,5.1416255]
[1758013331013,0.20602554,4518.3,4518.2,0.51637597]
[1758013331189,0.20602554,4518.3,4518.1,0.1104]
[1758013331511,0.002,4518.4,4518.1,0.1104]
[1758013331708,0.20782964,4518.4,4518.1,0.1104]
[1758013332012,0.20582964,4518.3,4518.1,0.1104]
[1758013332181,0.31622964,4518.2,4517.8,0.51436256]
[1758013332387,0.1104,4518.2,4517.8,1e-08]
[1758013332594,2.32368423,4518.2,4517.8,1e-08]
[1758013332796,2.32369112,4518.2,4517.8,1e-08]
[1758013332999,2.21336874,4518.0,4517.8,1e-08]
[1758013333315,2.62486633,4517.9,4517.8,1e-08]
[1758013333685,2.62482256,4517.9,4517.8,1e-08]
[1758013334006,6.43121835,4517.9,4517.8,1e-08]
[1758013337324,6.43115854,4517.9,4517.8,1e-08]
[1758013337487,6.43115854,4517.9,4517.8,0.00080001]
[1758013339501,6.90501988,4517.9,4517.8,0.00080001]
[1758013340188,6.90701988,4517.9,4517.8,0.00080001]
[1758013340528,6.90702953,4517.9,4517.8,0.00080001]
[1758013341288,6.90704937,4517.9,4517.8,0.00080001]
[1758013345742,6.43318803,4517.9,4517.8,0.00080001]
[1758013346621,6.43324121,4517.9,4517.8,0.00080001]
[1758013346952,6.90731866,4517.9,4517.8,0.00080001]
[1758013349445,6.90747279,4517.9,4517.8,0.00080001]
[1758013351532,6.90667279,4517.9,4517.8,0.00080001]
[1758013351850,6.90670281,4517.9,4517.8,0.00080001]
[1758013352211,8.60870281,4517.9,4517.8,0.00080001]
[1758013356126,13.75032831,4517.9,4517.8,0.00080001]
[1758013356451,2.21276472,4517.6,4517.5,1e-08]
[1758013356749,6.30728371,4517.6,4517.5,1e-08]
[1758013356946,6.43077235,4517.6,4517.5,1e-08]
[1758013359646,6.88247235,4517.6,4517.5,1e-08]
[1758013359846,7.6527498,4517.6,4517.5,1e-08]
[1758013360046,8.0859498,4517.6,4517.5,1e-08]
[1758013365550,8.08611296,4517.6,4517.5,1e-08]
[1758013367580,8.08611296,4517.6,4517.5,0.00080001]
[1758013367888,7.65291296,4517.6,4517.5,0.00080001]
[1758013368094,8.08611296,4517.6,4517.5,0.00080001]
[1758013369164,8.08635961,4517.6,4517.5,0.00080001]
[1758013370196,8.43353954,4517.6,4517.5,0.00080001]
[1758013371061,7.70413954,4517.6,4517.5,0.00080001]
[1758013372996,3.56943954,4517.6,4517.5,0.31630001]
[1758013373205,6.77836209,4517.6,4517.5,0.31630001]
[1758013373697,7.25243954,4517.6,4517.5,0.31630001]
[1758013374698,7.25528618,4517.6,4517.5,0.31630001]
[1758013376571,7.25448618,4517.6,4517.5,0.31630001]
[1758013377176,3.57220539,4517.6,4517.5,1.18000001]
[1758013377398,6.43310137,4517.6,4517.5,1.29820001]
[1758013378706,6.43314265,4517.6,4517.5,0.76800001]
[1758013378898,6.43314265,4517.6,4517.5,0.31630001]
[1758013379300,2.75017807,4517.6,4517.5,0.31630001]
[1758013379811,2.75017807,4517.6,4517.5,0.76800001]
[1758013381612,2.21396472,4517.6,4517.5,0.31630001]
[1758013381824,6.1031531,4517.6,4517.5,0.31630001]
[1758013382181,6.1031531,4517.6,4517.5,0.76800001]
[1758013382381,6.1031531,4517.6,4517.5,1.18000001]
[1758013382582,2.21396472,4517.6,4517.5,1.29820001]
[1758013382838,2.62633352,4517.6,4517.5,1.29820001]
[1758013382997,2.75004416,4517.6,4517.5,1.29820001]
[1758013383512,2.75002474,4517.6,4517.5,0.43450001]
[1758013383710,2.75002474,4517.6,4517.5,0.76800001]
[1758013383929,2.75002474,4517.6,4517.5,1.18000001]
[1758013384482,2.75002474,4517.6,4517.5,0.76800001]
[1758013387211,2.75002474,4517.6,4517.5,0.31630001]
[1758013389387,2.75002474,4517.6,4517.5,0.00080001]
[1758013389646,2.75002474,4517.6,4517.5,0.29680001]
[1758013392415,2.75002474,4517.6,4517.5,1.16050001]
[1758013392416,0.5247688,4517.6,4517.5,1.16050001]
[1758013392669,0.002,4517.6,4517.5,4.16238345]
[1758013392954,0.002,4517.6,4517.5,7.16238345]
[1758013393111,0.002,4517.6,4517.5,7.14024732]
[1758013393448,0.002,4517.6,4517.5,7.93224732]
[1758013394947,0.002,4517.6,4517.5,11.61424732]
[1758013396426,0.002,4517.6,4517.5,26.11424732]
[1758013398539,0.002,4517.9,4517.8,2.21346673]
[1758013398736,0.002,4517.9,4517.8,16.05612906]
[1758013398938,0.002,4517.9,4517.8,17.1936944]
[1758013399620,0.002,4517.9,4517.8,17.9856944]
[1758013400020,0.002,4517.9,4517.8,32.4856944]
[1758013401757,0.0012,4517.9,4517.8,36.1666944]
[1758013403265,0.0012,4517.9,4517.8,36.25539573]
[1758013415851,0.0012,4517.9,4517.8,30.72190648]
[1758013417479,0.4561,4517.9,4517.8,30.72190648]
[1758013417675,0.7601,4517.9,4517.8,30.72190648]
[1758013417846,1.2277,4517.9,4517.8,30.72190648]
[1758013418242,1.2277,4517.9,4517.8,30.72090648]
[1758013418464,0.4561,4517.9,4517.8,30.72090648]
[1758013418661,0.0012,4517.9,4517.8,30.72090648]
[1758013419281,0.0012,4517.9,4517.8,31.03170648]
[1758013420161,0.4561,4517.9,4517.8,27.04090648]
[1758013420383,0.4561,4517.9,4517.8,30.72090648]
[1758013421193,0.0012,4517.9,4517.8,30.72090648]
[1758013421493,0.0012,4517.9,4517.8,31.03170648]
[1758013422549,0.0012,4517.9,4517.8,27.35170648]
[1758013422751,0.0012,4517.9,4517.8,31.03170648]
[1758013424591,0.0012,4517.9,4517.8,30.72090648]
[1758013424791,1.2277,4517.9,4517.8,30.72090648]
[1758013425402,0.4561,4517.9,4517.8,30.72090648]
[1758013425892,0.4561,4517.9,4517.8,31.57188032]
[1758013426467,0.0012,4517.9,4517.8,31.88268032]
[1758013426993,0.0004,4517.9,4517.8,31.57188032]
[1758013427193,0.4553,4517.9,4517.8,31.57188032]
[1758013427788,0.7593,4517.9,4517.8,31.57188032]
[1758013427990,1.2269,4517.9,4517.8,31.57188032]
[1758013428469,1.2269,4517.9,4517.8,32.23720672]
[1758013428668,1.2269,4517.9,4517.8,28.55720672]
[1758013428885,1.2269,4517.9,4517.8,32.23720672]
[1758013429403,0.0004,4517.9,4517.8,32.54800672]
[1758013430181,0.0004,4517.9,4517.8,32.54900672]
[1758013431104,0.0016,4518.1,4518.0,3.00536874]
[1758013431268,0.0016,4518.1,4518.0,13.54945425]
[1758013431465,0.0016,4518.1,4518.0,13.84062057]
[1758013431677,0.0016,4518.1,4518.0,13.52732057]
[1758013432400,0.0016,4518.1,4518.0,28.51212057]
[1758013435637,0.0016,4518.1,4518.0,24.83212057]
[1758013435939,0.0016,4518.1,4518.0,28.51212057]
[1758013436819,0.0016,4518.1,4518.0,14.01212057]
[1758013437021,0.0016,4518.1,4518.0,14.31472057]
[1758013437206,0.0016,4518.1,4518.0,29.30962057]
[1758013437720,0.0016,4518.1,4518.0,28.81472057]
[1758013438927,0.0016,4518.1,4518.0,28.51212057]
[1758013439135,0.4517,4518.1,4518.0,28.51212057]
[1758013439844,1.2142,4518.1,4518.0,24.83212057]
[1758013440011,1.2142,4518.1,4518.0,13.52732057]
[1758013440404,1.2142,4518.1,4518.0,28.02732057]
[1758013444839,1.2142,4518.1,4518.0,24.34732057]
[1758013445042,1.2142,4518.1,4518.0,28.02732057]
[1758013452259,1.2134,4518.1,4518.0,28.02732057]
[1758013453149,1.2126,4518.1,4518.0,28.02732057]
[1758013453495,0.002,4518.4,4518.3,2.21322178]
[1758013453660,0.002,4518.4,4518.3,11.05121575]
[1758013453958,0.7645,4518.4,4518.3,11.13948354]
[1758013454362,1.2146,4518.4,4518.3,25.63948354]
[1758013454934,1.2146,4518.4,4518.3,27.34148354]
[1758013457263,1.2146,4518.4,4518.3,12.84148354]
[1758013457843,1.2146,4518.4,4518.3,27.34148354]
[1758013460842,1.2146,4518.4,4518.3,12.84148354]
[1758013461336,1.2146,4518.4,4518.3,27.34148354]
[1758013463180,1.2146,4518.4,4518.3,12.84148354]
[1758013465082,0.4521,4518.4,4518.3,12.84148354]
[1758013465579,0.8989,4518.4,4518.3,12.84148354]
[1758013465882,1.1839,4518.4,4518.3,12.84148354]
[1758013467371,0.4521,4518.4,4518.3,14.98063537]
[1758013467677,0.002,4518.4,4518.3,14.98063537]
[1758013467977,0.002,4518.4,4518.3,31.05843537]
[1758013468350,0.002,4518.4,4518.3,31.93873537]
[1758013468750,0.002,4518.4,4518.3,31.52673537]
[1758013469986,0.002,4518.4,4518.3,34.52673537]
[1758013470880,0.4683,4518.4,4518.3,33.74093537]
[1758013471474,0.002,4518.4,4518.3,33.74093537]
[1758013471875,0.4683,4518.4,4518.3,33.74093537]
[1758013472997,0.002,4518.4,4518.3,33.74093537]
[1758013475461,0.7533,4518.4,4518.3,24.92587361]